bitfinex-derivatives/quotes_SOLF0:USTF0_20250114
["timestamp","ask_amount","ask_price","bid_price","bid_amount"]
[1736871584774,1.5442,186.47,186.34,21.91720149]
[1736871585181,2.683,186.43,186.38,2.6835]
[1736871585480,2.683,186.43,186.34,21.91720149]
[1736871585983,2.6827,186.44,186.37,21.91720149]
[1736871586279,1.5442,186.47,186.39,2.6833]
[1736871586476,2.683,186.43,186.39,2.6833]
[1736871587177,2.683,186.43,186.34,21.91720149]
[1736871587372,1.5442,186.47,186.37,21.91720149]
[1736871587782,5.9,186.48,186.4,21.91720149]
[1736871587986,5.9,186.48,186.46,2.6824]
[1736871588284,5.9,186.48,186.4,21.91720149]
[1736871588680,2.6821,186.49,186.4,21.91720149]
[1736871588882,1.67,186.56,186.4,21.91720149]
[1736871589182,6.79756552,186.55,186.4,21.91720149]
[1736871589379,5.9,186.55,186.4,21.91720149]
[1736871589578,5.9,186.55,186.45,2.6825]
[1736871590079,2.682,186.5,186.45,2.6825]
[1736871591283,2.682,186.5,186.46,2.6824]
[1736871591582,2.682,186.5,186.4,21.91720149]
[1736871591883,2.682,186.5,186.45,2.6825]
[1736871592084,2.682,186.49,186.45,2.6825]
[1736871593185,5.9,186.51,186.4,21.91720149]
[1736871593487,13.68121463,186.5,186.38,13.68121463]
[1736871593786,2.6825,186.46,186.42,2.683]
[1736871594588,2.6823,186.47,186.43,2.6828]
[1736871594995,13.68121463,186.5,186.38,13.68121463]
[1736871595398,2.6825,186.46,186.42,2.6829]
[1736871598090,13.68121463,186.5,186.38,13.68121463]
[1736871598291,2.6823,186.47,186.43,2.6828]
[1736871598694,5.9,186.5,186.41,13.68121463]
[1736871598896,5.9,186.53,186.44,13.68121463]
[1736871599495,195.0,186.55,186.44,13.68121463]
[1736871599702,5.9,186.54,186.47,13.68121463]
[1736871600092,2.6816,186.53,186.49,2.6819]
[1736871600292,5.9,186.54,186.49,2.6819]
[1736871600490,4.8352,186.56,186.51,2.6817]
[1736871600694,4.8352,186.56,186.5,13.68121463]
[1736871600695,7.57,186.56,186.5,13.68121463]
[1736871601295,7.57,186.56,186.47,13.68121463]
[1736871601688,2.6817,186.52,186.48,2.6821]
[1736871602698,2.682,186.5,186.44,13.68121463]
[1736871603396,2.6819,186.5,186.44,13.68121463]
[1736871603703,3.1864,186.55,186.44,13.68121463]
[1736871603901,3.1864,186.55,186.49,2.682]
[1736871604199,2.6816,186.52,186.49,2.682]
[1736871604400,3.1864,186.55,186.47,2.6822]
[1736871605000,3.1864,186.55,186.48,2.682]
[1736871605597,2.6817,186.52,186.48,2.682]
[1736871605792,2.6817,186.52,186.44,13.68121463]
[1736871606097,2.6812,186.55,186.47,13.68121463]
[1736871606298,2.6812,186.55,186.5,13.68121463]
[1736871606500,5.9,186.56,186.5,13.68121463]
[1736871606902,196.6278,186.6,186.5,13.68121463]
[1736871607100,2.6809,186.57,186.53,2.6813]
[1736871607503,5.9,186.59,186.5,13.68121463]
[1736871607701,5.9,186.58,186.52,2.6815]
[1736871607901,2.6811,186.56,186.52,2.6815]
[1736871608101,5.9,186.58,186.53,2.6813]
[1736871608608,2.681,186.57,186.53,2.6813]
[1736871608803,2.681,186.57,186.54,2.6812]
[1736871609006,196.6278,186.6,186.54,2.6812]
[1736871609203,202.5278,186.6,186.54,2.6812]
[1736871610302,7.5278,186.6,186.5,13.68121463]
[1736871610702,7.5278,186.6,186.47,13.68121463]
[1736871610902,2.6814,186.54,186.47,13.68121463]
[1736871611307,13.68121463,186.59,186.51,2.6817]
[1736871611500,13.68121463,186.59,186.5,13.68121463]
[1736871611706,5.46136272,186.61,186.42,5.3658]
[1736871611707,5.46136272,186.61,186.53,13.68121463]
[1736871612506,5.46136272,186.61,186.55,2.6811]
[1736871613212,5.46136272,186.61,186.53,13.68121463]
[1736871613213,5.46136272,186.61,186.57,2.6808]
[1736871613408,5.46136272,186.61,186.53,13.68121463]
[1736871613611,1.5583,186.65,186.53,21.85151911]
[1736871613806,7.4583,186.65,186.53,21.85151911]
[1736871614214,2.68,186.63,186.53,21.85151911]
[1736871614708,2.6802,186.62,186.58,2.6806]
[1736871614909,2.6802,186.62,186.53,21.85151911]
[1736871615210,2.6802,186.62,186.59,2.6806]
[1736871616215,7.4583,186.65,186.53,21.85151911]
[1736871616811,2.6807,186.59,186.55,2.681]
[1736871617010,7.4583,186.65,186.53,21.85151911]
[1736871617615,2.6802,186.62,186.53,21.85151911]
[1736871618312,7.4583,186.65,186.56,21.85151911]
[1736871618514,7.5672,186.67,186.59,21.85151911]
[1736871618714,7.5672,186.67,186.61,2.6802]
[1736871618914,5.9,186.67,186.59,21.85151911]
[1736871619109,2.6792,186.69,186.59,21.85151911]
[1736871619318,2.6792,186.69,186.62,21.85151911]
[1736871619509,3.208,186.74,186.62,21.85151911]
[1736871619815,9.108,186.74,186.62,21.85151911]
[1736871620208,9.108,186.74,186.65,21.85151911]
[1736871620606,2.6788,186.72,186.65,21.85151911]
[1736871620807,9.108,186.74,186.65,21.85151911]
[1736871621010,9.108,186.74,186.58,4.0831]
[1736871621208,9.108,186.74,186.62,21.85151911]
[1736871621721,2.6793,186.68,186.62,21.85151911]
[1736871622317,2.6793,186.68,186.64,2.6798]
[1736871622517,2.6791,186.7,186.62,21.85151911]
[1736871623019,9.108,186.74,186.62,21.85151911]
[1736871623222,2.6793,186.68,186.62,21.85151911]
[1736871623417,9.108,186.74,186.62,21.85151911]
[1736871623622,9.108,186.74,186.58,4.0831]
[1736871623818,2.6796,186.66,186.58,4.0831]
[1736871624124,5.88,186.67,186.57,21.85151911]
[1736871624621,5.88,186.67,186.59,2.6806]
[1736871625114,5.88,186.67,186.57,2.6807]
[1736871625319,2.6803,186.61,186.57,2.6807]
[1736871625524,3.393,186.66,186.54,21.85151911]
[1736871625821,2.6806,186.59,186.54,21.85151911]
[1736871626018,2.6806,186.59,186.52,3.2895]
[1736871626219,1.6556,186.65,186.52,3.2895]
[1736871626416,2.6803,186.62,186.51,21.85151911]
[1736871626616,196.6556,186.65,186.51,21.85151911]
[1736871626817,21.85151911,186.63,186.48,21.85151911]
[1736871627019,21.85151911,186.63,186.46,1.6484]
[1736871627224,21.85151911,186.6,186.46,1.6484]
[1736871627422,5.88,186.59,186.45,23.47911911]
[1736871627623,5.88,186.59,186.45,21.85151911]
[1736871627820,3.2975,186.58,186.45,21.85151911]
[1736871628419,2.6813,186.55,186.49,2.6819]
[1736871629414,3.2975,186.58,186.45,21.85151911]
[1736871629620,2.681,186.57,186.52,2.6815]
[1736871630433,3.2975,186.58,186.48,21.85151911]
[1736871630723,2.6813,186.54,186.48,21.85151911]
[1736871631428,2.6813,186.54,186.49,2.6819]
[1736871631822,3.2975,186.58,186.45,21.85151911]
[1736871632123,21.85151911,186.54,186.41,1.6484]
[1736871632325,2.6822,186.48,186.36,31.4229576]
[1736871632522,2.6822,186.48,186.37,1.5628]
[1736871633028,2.6822,186.48,186.43,2.6827]
[1736871633429,5.88,186.49,186.37,1.5628]
[1736871633622,5.88,186.49,186.44,2.6827]
[1736871633819,5.88,186.49,186.42,21.85151911]
[1736871634329,3.2975,186.58,186.48,21.85151911]
[1736871634523,5.9,186.57,186.48,21.85151911]
[1736871634723,5.9,186.57,186.51,2.6817]
[1736871634724,8.581,186.57,186.51,2.6817]
[1736871634926,5.9,186.57,186.48,21.85151911]
[1736871635231,2.6813,186.54,186.49,2.682]
[1736871635824,2.6816,186.52,186.45,21.85151911]
[1736871636530,2.6814,186.53,186.48,2.6821]
[1736871637333,5.9,186.57,186.45,21.85151911]
[1736871637536,5.9,186.57,186.47,2.6823]
[1736871637927,2.6815,186.53,186.48,2.6821]
[1736871638327,5.9,186.57,186.48,2.6821]
[1736871638532,0.89871891,186.56,186.47,2.6822]
[1736871638930,1.5569,186.55,186.42,21.85151911]
[1736871639834,2.6818,186.51,186.46,2.6823]
[1736871640133,8.5818,186.51,186.46,2.6823]
[1736871640531,2.6819,186.5,186.46,2.6823]
[1736871640724,5.9,186.51,186.46,2.6823]
[1736871640930,5.9,186.51,186.47,2.6823]
[1736871642032,5.9,186.52,186.49,2.682]
[1736871642226,5.9,186.52,186.45,21.85151911]
[1736871642731,5.9,186.52,186.51,2.6817]
[1736871643235,5.9,186.52,186.45,21.85151911]
[1736871643737,5.9,186.52,186.42,21.85151911]
[1736871643932,8.5817,186.52,186.48,2.6821]
[1736871644129,8.5817,186.52,186.45,21.85151911]
[1736871644633,5.9,186.52,186.51,2.6817]
[1736871644837,3.2975,186.58,186.48,21.85151911]
[1736871645033,9.1975,186.58,186.48,21.85151911]
[1736871645734,2.6809,186.57,186.53,2.6814]
[1736871646336,9.1975,186.58,186.48,21.85151911]
[1736871646637,9.1975,186.58,186.4,5.9]
[1736871646638,9.1975,186.58,186.45,21.85151911]
[1736871646837,2.6815,186.53,186.47,2.6822]
[1736871647035,9.1975,186.58,186.45,21.85151911]
[1736871647338,2.6813,186.55,186.49,2.682]
[1736871647640,9.1975,186.58,186.49,2.682]
[1736871648041,2.6815,186.53,186.49,2.682]
[1736871648241,9.1975,186.58,186.48,2.6821]
[1736871648441,21.85151911,186.54,186.39,21.85151911]
[1736871648641,21.85151911,186.51,186.36,23.55681911]
[1736871648942,21.85151911,186.51,186.41,2.683]
[1736871648943,10.6591,186.5,186.41,2.683]
[1736871649134,10.6591,186.5,186.36,23.55681911]
[1736871649530,2.6826,186.45,186.4,2.6833]
[1736871650036,2.6826,186.45,186.36,23.55681911]
[1736871651130,2.6826,186.45,186.41,2.6831]
[1736871652635,10.6591,186.5,186.41,2.6831]
[1736871652841,10.6591,186.5,186.33,21.85151911]
[1736871653437,2.6828,186.44,186.4,2.6833]
[1736871654639,4.7591,186.5,186.36,21.85151911]
[1736871654839,5.9,186.49,186.39,21.85151911]
[1736871655342,2.6822,186.48,186.44,2.6826]
[1736871655743,2.6822,186.48,186.32,1.6579]
[1736871655744,2.6823,186.47,186.32,1.6579]
[1736871655943,2.6823,186.47,186.37,21.85151911]
[1736871656148,5.9,186.49,186.37,21.85151911]
[1736871656447,7.4879,186.5,186.4,21.85151911]
[1736871656646,1.5879,186.5,186.4,21.85151911]
[1736871656945,4.2699,186.5,186.46,2.6823]
[1736871657538,1.5879,186.5,186.4,21.85151911]
[1736871657740,2.6822,186.48,186.44,2.6827]
[1736871658144,1.5879,186.5,186.4,21.85151911]
[1736871659643,1.5879,186.5,186.37,21.85151911]
[1736871659941,2.6826,186.45,186.4,2.6832]
[1736871660136,2.6826,186.45,186.37,21.85151911]
[1736871660335,1.5879,186.5,186.4,21.85151911]
[1736871661042,2.682,186.49,186.45,2.6825]
[1736871661441,1.5879,186.5,186.4,21.85151911]
[1736871661641,2.682,186.49,186.45,2.6825]
[1736871662848,1.5879,186.5,186.4,21.85151911]
[1736871663050,1.5879,186.5,186.46,2.6823]
[1736871663742,1.6094,186.55,186.35,5.9]
[1736871663743,5.9,186.53,186.45,13.67220406]
[1736871663944,1.6094,186.55,186.48,13.67220406]
[1736871664251,5.9,186.56,186.51,13.67220406]
[1736871664451,3.2424,186.6,186.51,13.67220406]
[1736871664644,19.13307645,186.63,186.54,13.67220406]
[1736871664645,5.46087239,186.63,186.54,13.67220406]
[1736871665248,11.36087239,186.63,186.54,13.67220406]
[1736871665442,11.36087239,186.63,186.58,2.6807]
[1736871665952,14.04087239,186.63,186.58,2.6807]
[1736871666147,11.36087239,186.63,186.58,2.6807]
[1736871667447,4.707,186.67,186.59,2.6805]
[1736871667650,5.88,186.66,186.59,2.6805]
[1736871668750,2.68,186.64,186.59,2.6805]
[1736871669454,4.707,186.67,186.6,2.6803]
[1736871669455,2.6797,186.65,186.6,2.6803]
[1736871670654,2.6803,186.61,186.57,2.6808]
[1736871671049,2.6803,186.61,186.49,4.1079]
[1736871671050,8.5597,186.66,186.61,2.6803]
[1736871671652,5.88,186.66,186.56,21.85124771]
[1736871671855,5.88,186.66,186.62,2.6801]
[1736871672056,5.88,186.66,186.56,21.85124771]
[1736871672353,5.88,186.66,186.53,21.85124771]
[1736871672753,2.6801,186.63,186.58,2.6807]
[1736871672953,5.88,186.66,186.53,21.85124771]
[1736871673351,5.88,186.66,186.58,2.6807]
[1736871674044,2.6801,186.63,186.58,2.6807]
[1736871675156,5.88,186.66,186.58,2.6807]
[1736871675359,2.6801,186.62,186.58,2.6807]
[1736871675547,5.88,186.66,186.58,2.6807]
[1736871675853,2.6801,186.63,186.58,2.6807]
[1736871676053,5.88,186.66,186.58,2.6807]
[1736871676452,5.88,186.66,186.57,2.6808]
[1736871676850,5.88,186.66,186.53,21.85124771]
[1736871677459,2.6803,186.62,186.57,2.6807]
[1736871677651,5.88,186.66,186.53,21.85124771]
[1736871678047,2.6802,186.62,186.57,2.6807]
[1736871679155,2.6802,186.62,186.55,2.681]
[1736871679452,2.6802,186.62,186.53,21.85124771]
[1736871679663,3.1625,186.67,186.49,4.1079]
[1736871679664,3.1625,186.67,186.61,2.6803]
[1736871679862,5.88,186.66,186.61,2.6803]
[1736871680060,2.6799,186.64,186.56,21.85124771]
[1736871680359,2.6799,186.64,186.59,2.6805]
[1736871680560,2.6799,186.64,186.56,21.85124771]
[1736871681560,2.6799,186.64,186.59,2.6804]
[1736871681755,2.68,186.63,186.59,2.6804]
[1736871682158,5.88,186.66,186.56,21.85124771]
[1736871682360,2.6801,186.63,186.56,2.6809]
[1736871682560,5.88,186.66,186.56,2.6809]
[1736871682764,5.88,186.66,186.53,21.85124771]
[1736871683262,2.6805,186.6,186.56,2.681]
[1736871683957,5.88,186.66,186.56,21.85124771]
[1736871684359,5.88,186.66,186.53,21.85124771]
[1736871684664,2.6805,186.6,186.53,21.85124771]
[1736871685064,5.88,186.66,186.53,21.85124771]
[1736871685269,5.88,186.66,186.5,21.85124771]
[1736871685270,27.73124771,186.66,186.5,21.85124771]
[1736871685563,21.85124771,186.63,186.47,21.85124771]
[1736871685762,2.6815,186.53,186.48,2.682]
[1736871686158,5.88,186.55,186.44,23.45294771]
[1736871686360,2.6815,186.53,186.49,2.6819]
[1736871686755,5.88,186.55,186.44,23.45294771]
[1736871686961,5.88,186.55,186.47,21.85124771]
[1736871687363,5.88,186.55,186.49,13.66565874]
[1736871687665,5.88,186.55,186.52,2.6815]
[1736871688069,8.5612,186.55,186.52,2.6815]
[1736871688368,5.88,186.55,186.49,13.66565874]
[1736871689372,5.88,186.55,186.53,2.6814]
[1736871691673,5.88,186.55,186.54,2.6813]
[1736871691868,5.88,186.55,186.52,13.66565874]
[1736871692375,5.88,186.55,186.53,2.6813]
[1736871692574,1.573,186.59,186.52,13.66565874]
[1736871692771,1.6289,186.62,186.52,13.66565874]
[1736871692971,2.6806,186.59,186.56,2.681]
[1736871693368,5.88,186.61,186.52,13.66565874]
[1736871693573,2.6808,186.58,186.54,2.6812]
[1736871693767,2.6808,186.58,186.52,13.66565874]
[1736871693768,5.88,186.61,186.52,13.66565874]
[1736871694174,5.88,186.61,186.53,2.6814]
[1736871695675,2.681,186.57,186.53,2.6814]
[1736871697682,2.6807,186.58,186.54,2.6812]
[1736871698374,2.6806,186.59,186.55,2.681]
[1736871698772,1.6289,186.62,186.52,13.66565874]
[1736871698979,2.6806,186.59,186.55,2.681]
[1736871699282,5.88,186.61,186.52,13.66565874]
[1736871699472,2.6807,186.59,186.53,2.6814]
[1736871699783,5.88,186.6,186.52,13.66565874]
[1736871700175,5.88,186.6,186.56,2.681]
[1736871700376,5.88,186.6,186.52,13.66565874]
[1736871700779,2.6807,186.59,186.52,13.66565874]
[1736871700980,5.88,186.6,186.52,13.66565874]
[1736871701281,5.88,186.6,186.54,2.6812]
[1736871701582,5.88,186.6,186.48,13.66565874]
[1736871701883,13.66565874,186.59,186.49,13.66565874]
[1736871702071,13.66565874,186.59,186.46,13.66565874]
[1736871702277,3.219,186.58,186.46,13.66565874]
[1736871702476,3.219,186.58,186.49,13.66565874]
[1736871703080,2.6811,186.56,186.52,2.6815]
[1736871703382,3.219,186.58,186.49,13.66565874]
[1736871704184,2.6812,186.55,186.51,2.6817]
[1736871704573,3.219,186.58,186.49,13.66565874]
[1736871705778,3.219,186.58,186.5,2.6818]
[1736871707083,3.219,186.58,186.49,13.66565874]
[1736871707485,2.6814,186.54,186.5,2.6818]
[1736871708987,2.6814,186.53,186.5,2.6818]
[1736871710493,3.219,186.58,186.51,2.6816]
[1736871710889,3.219,186.58,186.49,13.66565874]
[1736871711189,198.219,186.58,186.46,13.66565874]
[1736871711491,13.66565874,186.56,186.43,13.66565874]
[1736871711683,2.6819,186.5,186.46,2.6823]
[1736871712897,5.88,186.52,186.46,13.66565874]
[1736871713595,2.6819,186.5,186.46,16.34795874]
[1736871713788,2.6819,186.5,186.46,13.66565874]
[1736871714289,2.682,186.49,186.46,16.34805874]
[1736871714795,2.6822,186.48,186.45,2.6825]
[1736871714990,5.88,186.52,186.43,13.66565874]
[1736871715193,5.88,186.52,186.39,16.98485874]
[1736871715392,5.88,186.52,186.44,2.6827]
[1736871715789,2.6823,186.48,186.44,2.6827]
[1736871715992,5.88,186.52,186.43,2.6828]
[1736871716595,2.682,186.5,186.43,2.6828]
[1736871716797,5.88,186.52,186.42,16.34865874]
[1736871717300,2.6825,186.46,186.42,16.34865874]
[1736871718902,5.88,186.52,186.42,13.66565874]
[1736871719102,2.6822,186.48,186.42,13.66565874]
[1736871719603,2.682,186.49,186.45,2.6825]
[1736871720098,5.88,186.52,186.45,2.6825]
[1736871720299,2.6822,186.48,186.44,2.6827]
[1736871720500,5.88,186.52,186.42,13.66565874]
[1736871720802,2.682,186.49,186.42,16.34855874]
[1736871721100,5.88,186.52,186.42,16.34855874]
[1736871721301,5.88,186.52,186.39,13.66565874]
[1736871721302,2.6821,186.49,186.39,13.66565874]
[1736871721502,3.3561,186.48,186.41,2.6831]
[1736871721997,3.3561,186.48,186.39,13.66565874]
[1736871722300,3.3561,186.48,186.4,2.6833]
[1736871722504,3.3561,186.48,186.39,13.66565874]
[1736871722704,2.6827,186.45,186.41,2.6831]
[1736871723006,3.3561,186.48,186.42,13.66565874]
[1736871723305,1.6618,186.48,186.42,13.66565874]
[1736871723508,200.88,186.52,186.42,13.66565874]
[1736871724204,200.88,186.52,186.45,13.66565874]
[1736871724594,200.88,186.52,186.46,2.6824]
[1736871725104,5.88,186.53,186.45,13.66565874]
[1736871725301,1.618,186.55,186.48,13.66565874]
[1736871725506,5.88,186.54,186.45,13.66565874]
[1736871726804,2.6817,186.52,186.47,2.6822]
[1736871727002,5.88,186.54,186.47,2.6822]
[1736871727206,5.88,186.54,186.45,13.66565874]
[1736871727908,2.6819,186.5,186.46,2.6824]
[1736871728113,5.88,186.54,186.45,13.66565874]
[1736871728303,1.618,186.55,186.48,13.66565874]
[1736871728507,2.6812,186.55,186.51,2.6816]
[1736871729209,1.6474,186.56,186.53,2.6814]
[1736871729408,8.5609,186.57,186.53,2.6814]
[1736871729913,2.681,186.56,186.52,2.6815]
[1736871730102,5.88,186.57,186.51,13.66565874]
[1736871730699,5.88,186.59,186.51,13.66565874]
[1736871730903,2.6808,186.58,186.53,2.6814]
[1736871731606,5.88,186.59,186.53,2.6814]
[1736871731801,5.88,186.59,186.51,13.66565874]
[1736871732006,5.88,186.59,186.51,16.34735874]
[1736871732206,2.6809,186.57,186.51,13.66565874]
[1736871732408,5.88,186.59,186.51,13.66565874]
[1736871732606,5.88,186.59,186.53,2.6814]
[1736871732807,2.6808,186.58,186.53,2.6814]
[1736871733007,1.625,186.62,186.55,2.681]
[1736871733208,5.88,186.61,186.55,2.681]
[1736871733409,2.6804,186.6,186.54,13.66565874]
[1736871733707,7.505,186.62,186.57,13.66565874]
[1736871733907,2.6803,186.61,186.57,13.66565874]
[1736871734713,2.68,186.63,186.57,13.66565874]
[1736871734910,2.68,186.63,186.58,2.6806]
[1736871735111,2.68,186.63,186.57,13.66565874]
[1736871735310,2.6799,186.64,186.57,13.66565874]
[1736871735511,2.6799,186.64,186.59,2.6805]
[1736871735714,8.5597,186.65,186.6,13.66565874]
[1736871735910,12.20888233,186.68,186.61,2.6803]
[1736871736106,5.88,186.67,186.6,13.66565874]
[1736871736305,3.1644,186.68,186.63,13.66565874]
[1736871736510,7.4704,186.68,186.63,13.66565874]
[1736871736913,2.6795,186.67,186.63,13.66565874]
[1736871738215,2.6796,186.66,186.63,13.66565874]
[1736871738809,7.4704,186.68,186.6,13.66565874]
[1736871739218,9.1221,186.68,186.6,13.66565874]
[1736871740114,9.1221,186.68,186.57,13.66565874]
[1736871740417,13.66565874,186.66,186.54,13.66565874]
[1736871740614,13.66565874,186.63,186.51,13.66565874]
[1736871740810,13.66565874,186.6,186.49,13.66565874]
[1736871741013,2.6815,186.53,186.49,13.66565874]
[1736871741211,9.1206,186.59,186.52,13.66565874]
[1736871741418,9.1206,186.59,186.45,100.4]
[1736871741621,9.1206,186.59,186.5,2.6817]
[1736871741911,9.1206,186.59,186.49,13.66565874]
[1736871742513,1.5528,186.58,186.49,13.66565874]
[1736871743317,2.6815,186.53,186.49,13.66565874]
[1736871743913,2.6815,186.53,186.49,16.34765874]
[1736871744113,2.6815,186.53,186.49,13.66565874]
[1736871745214,146.13403192,186.71,186.52,27.33131748]
[1736871745421,151.01103192,186.71,186.62,13.66565874]
[1736871745620,150.45733192,186.71,186.66,2.6795]
[1736871745817,147.77833192,186.71,186.65,13.66565874]
[1736871746014,13.66565874,186.76,186.65,13.66565874]
[1736871746218,6.77790497,186.75,186.65,13.66565874]
[1736871746419,5.88,186.75,186.65,13.66565874]
[1736871747229,5.88,186.75,186.57,13.66565874]
[1736871747230,13.66565874,186.79,186.68,13.66565874]
[1736871747427,6.77873033,186.78,186.66,21.82395858]
[1736871747624,2.6786,186.74,186.68,2.6792]
[1736871747931,2.6786,186.74,186.66,21.82395858]
[1736871749217,8.5583,186.75,186.66,21.82395858]
[1736871749931,2.6783,186.75,186.66,21.82395858]
[1736871750532,2.6783,186.75,186.7,2.679]
[1736871751426,2.6784,186.74,186.69,2.679]
[1736871751626,2.6784,186.74,186.66,21.82395858]
[1736871752027,2.6784,186.74,186.7,2.679]
[1736871752627,146.13403192,186.91,186.71,21.82395858]
[1736871752836,0.89962742,186.9,186.8,21.82395858]
[1736871753131,149.39863192,186.92,186.83,21.82395858]
[1736871753333,149.39863192,186.92,186.85,2.6768]
[1736871753634,149.39863192,186.92,186.86,21.82395858]
[1736871754035,149.39863192,186.92,186.83,21.82395858]
[1736871754335,3.2646,186.92,186.83,21.82395858]
[1736871754737,7.29260704,187.01,186.89,21.82395858]
[1736871754931,0.9001682,187.0,186.94,21.82395858]
[1736871755132,7.29260704,187.01,186.94,21.82395858]
[1736871755636,3.3513,187.05,186.94,21.82395858]
[1736871755826,0.90016248,187.04,186.94,21.82395858]
[1736871756028,0.90009994,187.03,186.94,21.82395858]
[1736871756229,3.3513,187.05,186.94,21.82395858]
[1736871756433,2.6754,186.95,186.91,21.82395858]
[1736871759145,5.88,186.99,186.91,21.82395858]
[1736871759341,5.88,186.99,186.94,21.82395858]
[1736871759733,8.555,186.99,186.94,21.82395858]
[1736871760444,2.6747,187.01,186.94,21.82395858]
[1736871760746,2.6747,187.01,186.97,21.82395858]
[1736871762542,2.6744,187.02,186.97,21.82395858]
[1736871762742,3.3513,187.05,186.97,21.82395858]
[1736871763244,2.6743,187.03,186.97,21.82395858]
[1736871764247,2.6744,187.02,186.97,21.82395858]
[1736871767444,3.3513,187.05,186.97,21.82395858]
[1736871767652,485.0098,187.34,187.03,21.82395858]
[1736871767855,3.2323,187.13,187.03,21.82395858]
[1736871768283,2.6739,187.06,187.03,21.82395858]
[1736871768960,2.6736,187.08,187.03,21.82395858]
[1736871769149,5.86,187.11,187.03,21.82395858]
[1736871769351,2.6738,187.06,187.03,21.82395858]
[1736871769846,5.86,187.11,187.03,21.82395858]
[1736871771245,2.6739,187.06,187.03,21.82395858]
[1736871772451,2.6737,187.08,187.03,21.82395858]
[1736871772658,3.2323,187.13,187.03,21.82395858]
[1736871772954,9.0923,187.13,187.03,21.82395858]
[1736871773148,2.6734,187.1,187.03,21.82395858]
[1736871773347,195.0,187.15,187.06,21.82395858]
[1736871773848,195.0,187.15,187.09,21.82395858]
[1736871774350,2.673,187.12,187.09,21.82395858]
[1736871774853,2.6731,187.11,187.09,21.82395858]
[1736871775547,2.6733,187.1,187.09,21.82395858]
[1736871776448,2.6733,187.1,187.06,21.82395858]
[1736871776850,200.88,187.15,187.06,21.82395858]
[1736871777953,2.6734,187.1,187.06,21.82395858]
[1736871778643,200.88,187.15,187.03,21.82395858]
[1736871779052,2.6741,187.05,187.03,21.82395858]
[1736871780849,2.6738,187.06,187.03,21.82395858]
[1736871781450,2.674,187.05,187.03,21.82395858]
[1736871782454,2.6741,187.04,187.03,21.82395858]
[1736871782852,5.86,187.08,187.03,21.82395858]
[1736871783257,5.86,187.08,187.0,21.82395858]
[1736871783455,3.3775,187.07,187.0,21.82395858]
[1736871783656,2.674,187.05,187.0,21.82395858]
[1736871783955,4.9619,187.07,187.0,21.82395858]
[1736871784445,2.6744,187.02,187.0,21.82395858]
[1736871784846,2.6745,187.01,186.97,24.49895858]
[1736871785751,2.6747,187.0,186.97,21.82395858]
[1736871786357,4.9619,187.07,186.98,2.6749]
[1736871786558,3.3775,187.07,187.01,21.82395858]
[1736871786760,1.7008,187.07,187.01,21.82395858]
[1736871786955,5.86,187.08,187.01,21.82395858]
[1736871787150,2.6741,187.05,187.04,21.82395858]
[1736871787659,2.6741,187.04,187.01,21.82395858]
[1736871787860,5.86,187.08,187.01,21.82395858]
[1736871788161,2.6748,187.0,186.97,21.82395858]
[1736871788559,5.86,187.08,186.97,21.82395858]
[1736871789560,2.6749,186.99,186.95,2.88729]
[1736871789956,195.0,187.07,186.95,0.21199]
[1736871790858,195.0,187.06,186.95,0.21199]
[1736871791458,195.0,187.05,186.95,0.21199]
[1736871791666,1.5966,187.04,186.95,0.21199]
[1736871791865,1.5966,187.04,186.96,2.6752]
[1736871791866,2.6747,187.0,186.96,2.6752]
[1736871792462,2.6749,186.99,186.95,0.21199]
[1736871792865,5.86,187.01,186.95,0.21199]
[1736871793664,2.6753,186.96,186.95,0.21199]